[Event "WYCC 2018 G14"]
[Site "Halkidiki"]
[Date "2018.10.29"]
[Round "10"]
[White "Murzina, Agata"]
[Black "Rodriguez Redondo, Adhara"]
[Result "0-1"]
[ECO "C50"]
[WhiteElo "1768"]
[BlackElo "1911"]
[Annotator "NA"]
[PlyCount "114"]
[EventDate "2018.10.20"]
[EventType "swiss"]
[EventCountry "GRE"]
[SourceTitle "playchess.com"]
[Source "ChessBase"]
[SourceQuality "1"]
[TimeControl "40/5400+30:1800+30"]

1. e4 {[%emt 0:01:43]} e5 {[%emt 0:00:00]} 2. Nf3 {[%emt 0:00:04]} Nc6 {[%emt 0:00:00]} 3. Bc4 {[%emt 0:00:06]} Bc5 {[%emt 0:00:00]} 4. d3 {[%emt 0:00:14]} Nf6 {[%emt 0:00:00]} 5. Nc3 {[%emt 0:00:06]} d6 {[%emt 0:00:18]} 6. h3 {[%emt 0:00:48]} a6 {[%emt 0:01:25]} 7. a4 {[%emt 0:00:08]} h6 {[%emt 0:01:10]} 8. Nd5 {[%emt 0:00:21]} Ba7 {[%emt 0:03:44]} 9. O-O {[%emt 0:12:32]} Be6 {[%emt 0:04:20]} 10. Nxf6+ {[%emt 0:04:06]} Qxf6 {[%emt 0:00:23]} 11. Bxe6 {[%emt 0:00:09]} fxe6 {[%emt 0:01:00]} 12. c3 {[%emt 0:07:29]} g5 {[%emt 0:08:08]} 13. b4 {[%emt 0:01:49]} Ne7 {[%emt 0:01:48]} 14. Be3 {[%emt 0:15:39]} Ng6 {[%emt 0:05:59]} 15. g3 {[%emt 0:07:28]} Rg8 {[%emt 0:06:44]} 16. Nh2 {[%emt 0:05:48]} Qg7 {[%emt 0:07:54]} 17. Qh5 {[%emt 0:05:16]} Kd7 {[%emt 0:03:56]} 18. Ng4 {[%emt 0:01:57]} Rh8 {[%emt 0:02:08]} 19. b5 {[%emt 0:01:05]} a5 {[%emt 0:01:45]} 20. Rab1 {[%emt 0:01:52]} Bb6 {[%emt 0:01:41]} 21. Rfd1 {[%emt 0:04:46]} Raf8 {[%emt 0:03:27]} 22. Bxb6 {[%emt 0:00:16]} cxb6 {[%emt 0:00:07]} 23. d4 {[%emt 0:00:10]} Kc7 {[%emt 0:07:33]} 24. Rd3 {[%emt 0:01:14]} exd4 {[%emt 0:01:43]} 25. cxd4 {[%emt 0:06:59]} Kb8 {[%emt 0:03:57]} 26. Rc1 Rf7 27. d5 {[%emt 0:02:48]} e5 {[%emt 0:05:00]} 28. Rdc3 {[%emt 0:00:55]} Rhf8 {[%emt 0:07:58]} 29. R1c2 {[%emt 0:00:17]} Rh8 {[%emt 0:02:41]} 30. Ne3 {[%emt 0:00:36]} Qf6 {[%emt 0:02:04]} 31. Nf5 {[%emt 0:00:32]} Rfh7 {[%emt 0:05:41]} 32. Rf3 {[%emt 0:05:46]} Rg8 {[%emt 0:01:03]} 33. Kf1 {[%emt 0:03:00]} Rf8 {[%emt 0:07:32]} 34. Rcc3 {[%emt 0:00:54]} Rg8 {[%emt 0:02:09]} 35. Ke1 {[%emt 0:01:49]} Qd8 {[%emt 0:02:59]} 36. Nxh6 {[%emt 0:01:31]} Rgg7 {[%emt 0:00:52]} 37. Rf5 {[%emt 0:06:58]} Qh8 {[%emt 0:00:30]} 38. Rf6 {[%emt 0:00:37]} Rxh6 {[%emt 0:00:30]} 39. Qxg5 {[%emt 0:00:02]} Rh5 {[%emt 0:00:44]} 40. Qg4 {[%emt 0:00:00]} Nf4 {[%emt 0:00:00]} 41. Qf3 {[%emt 0:05:39]} Rxh3 {[%emt 0:08:02]} 42. Rxd6 {[%emt 0:00:18]} Qf8 {[%emt 0:03:44]} 43. Rxb6 {[%emt 0:00:12]} Qb4 {[%emt 0:05:55]} 44. Kd2 {[%emt 0:03:55]} Qd4+ {[%emt 0:00:20]} 45. Kc2 {[%emt 0:00:06]} Qxb6 {[%emt 0:00:09]} 46. Kb3 {[%emt 0:00:32]} Rc7 {[%emt 0:01:42]} 47. Rxc7 {[%emt 0:00:42]} Qxc7 {[%emt 0:00:05]} 48. Qg4 {[%emt 0:00:10]} Qc5 {[%emt 0:01:53]} 49. Qg8+ {[%emt 0:00:12]} Ka7 {[%emt 0:00:10]} 50. Qd8 {[%emt 0:00:19]} Qb4+ {[%emt 0:00:42]} 51. Kc2 {[%emt 0:00:04]} Qxa4+ {[%emt 0:00:00]} 52. Kd2 {[%emt 0:00:25]} Qb4+ {[%emt 0:00:56]} 53. Kd1 {[%emt 0:00:10]} Rh1+ {[%emt 0:00:06]} 54. Kc2 {[%emt 0:00:03]} Qb1+ {[%emt 0:00:09]} 55. Kc3 {[%emt 0:00:07]} Rc1+ {[%emt 0:00:06]} 56. Kd2 {[%emt 0:00:02]} Qc2+ {[%emt 0:00:12]} 57. Ke3 {[%emt 0:00:05]} Qd3# {[%emt 0:00:04] Kd4} 0-1

[Event "WYCC 2018 G14"]
[Site "Halkidiki"]
[Date "2018.10.29"]
[Round "10"]
[White "Gabbani, Sara"]
[Black "Woods, Charisse"]
[Result "1-0"]
[ECO "B24"]
[WhiteElo "1764"]
[BlackElo "1511"]
[Annotator "NA"]
[PlyCount "65"]
[EventDate "2018.10.20"]
[EventType "swiss"]
[EventCountry "GRE"]
[SourceTitle "playchess.com"]
[Source "ChessBase"]
[SourceQuality "1"]
[TimeControl "40/5400+30:1800+30"]

1. e4 {[%emt 0:00:00]} c5 {[%emt 0:00:00]} 2. Nc3 {[%emt 0:00:00]} Nc6 {[%emt 0:00:00]} 3. g3 {[%emt 0:00:00]} g6 {[%emt 0:00:00]} 4. Nge2 {[%emt 0:00:45]} Bg7 {[%emt 0:00:05]} 5. Bg2 {[%emt 0:00:54]} d6 {[%emt 0:00:33]} 6. d3 {[%emt 0:01:06]} Nf6 {[%emt 0:00:43]} 7. h3 {[%emt 0:01:48]} O-O {[%emt 0:00:37]} 8. Be3 {[%emt 0:01:11]} a6 {[%emt 0:00:56]} 9. Qd2 {[%emt 0:03:20]} Rb8 {[%emt 0:00:48]} 10. Bh6 {[%emt 0:01:28]} b5 {[%emt 0:01:32]} 11. Bxg7 {[%emt 0:04:06]} Kxg7 {[%emt 0:00:06]} 12. f4 {[%emt 0:05:08]} b4 {[%emt 0:01:51]} 13. Nd1 {[%emt 0:01:47]} Bb7 {[%emt 0:00:30]} 14. O-O {[%emt 0:04:20]} e6 {[%emt 0:02:17]} 15. Ne3 {[%emt 0:05:21]} d5 {[%emt 0:03:44]} 16. e5 {[%emt 0:01:52]} Ne8 {[%emt 0:00:16]} 17. d4 {[%emt 0:01:17]} c4 {[%emt 0:00:58]} 18. c3 {[%emt 0:02:30]} a5 {[%emt 0:00:33]} 19. b3 {[%emt 0:03:08]} cxb3 {[%emt 0:02:28]} 20. axb3 {[%emt 0:00:16]} Qb6 {[%emt 0:01:13]} 21. c4 {[%emt 0:02:16]} dxc4 {[%emt 0:01:09]} 22. Nxc4 {[%emt 0:01:04]} Qb5 {[%emt 0:02:18]} 23. Kh2 {[%emt 0:04:29]} Ra8 {[%emt 0:02:05]} 24. d5 {[%emt 0:09:31]} exd5 {[%emt 0:02:11]} 25. Qxd5 {[%emt 0:01:34]} Qa6 {[%emt 0:01:09]} 26. g4 {[%emt 0:06:43]} Nc7 {[%emt 0:04:14]} 27. Qd2 {[%emt 0:02:09]} Nb5 {[%emt 0:03:27]} 28. f5 {[%emt 0:03:08]} Rfd8 {[%emt 0:03:37]} 29. f6+ {[%emt 0:00:27]} Kh8 {[%emt 0:00:19]} 30. Qh6 {[%emt 0:00:27]} Rg8 {[%emt 0:00:08]} 31. Rfd1 {[%emt 0:02:07]} Bc8 {[%emt 0:05:53]} 32. Bxc6 {[%emt 0:03:44]} Qxc6 {[%emt 0:00:12]} 33. Rd8 {[%emt 0:00:11]} 1-0

[Event "WYCC 2018 G14"]
[Site "Halkidiki"]
[Date "2018.10.29"]
[Round "10"]
[White "Kurmangaliyeva, Liya"]
[Black "Obada, Ema"]
[Result "1/2-1/2"]
[ECO "C15"]
[WhiteElo "1733"]
[BlackElo "1811"]
[Annotator "NA"]
[PlyCount "128"]
[EventDate "2018.10.20"]
[EventType "swiss"]
[EventCountry "GRE"]
[SourceTitle "playchess.com"]
[Source "ChessBase"]
[SourceQuality "1"]
[TimeControl "40/5400+30:1800+30"]

1. e4 {[%emt 0:00:00]} e6 {[%emt 0:00:00]} 2. d4 {[%emt 0:00:00]} d5 {[%emt 0:00:00]} 3. Nc3 {[%emt 0:00:00]} Bb4 {[%emt 0:00:00]} 4. exd5 {[%emt 0:00:13]} exd5 {[%emt 0:00:00]} 5. Bd3 {[%emt 0:00:06]} Nc6 {[%emt 0:00:07]} 6. a3 {[%emt 0:00:06]} Bxc3+ {[%emt 0:00:07]} 7. bxc3 {[%emt 0:00:07]} Nge7 {[%emt 0:00:07]} 8. Qh5 {[%emt 0:02:19]} Be6 {[%emt 0:00:29]} 9. Nf3 {[%emt 0:09:53]} Qd7 {[%emt 0:00:52]} 10. Ng5 {[%emt 0:08:16]} O-O-O {[%emt 0:02:01]} 11. Nxe6 {[%emt 0:04:10]} Qxe6+ {[%emt 0:00:12]} 12. Be3 {[%emt 0:00:53]} g6 {[%emt 0:01:05]} 13. Qf3 {[%emt 0:00:14]} Nf5 {[%emt 0:01:54]} 14. O-O {[%emt 0:05:49]} Rhe8 {[%emt 0:16:07]} 15. Bd2 {[%emt 0:09:27]} Nd6 {[%emt 0:07:33]} 16. Rfe1 {[%emt 0:17:14]} Ne4 {[%emt 0:00:19]} 17. Bxe4 {[%emt 0:00:31]} dxe4 {[%emt 0:00:07]} 18. Qe2 {[%emt 0:00:39]} Na5 {[%emt 0:11:34]} 19. Rab1 {[%emt 0:05:28]} Qc4 {[%emt 0:02:37]} 20. Qg4+ {[%emt 0:07:04]} f5 {[%emt 0:00:13]} 21. Qh3 {[%emt 0:00:21]} Rd7 {[%emt 0:04:01]} 22. Bf4 {[%emt 0:10:35]} Qc6 {[%emt 0:08:54]} 23. Qe3 {[%emt 0:05:16]} b6 {[%emt 0:05:23]} 24. Rb4 {[%emt 0:01:42]} Kb7 {[%emt 0:04:11]} 25. a4 {[%emt 0:01:48]} g5 {[%emt 0:11:01]} 26. Bxg5 {[%emt 0:01:59]} Rg8 {[%emt 0:00:04]} 27. Bf4 {[%emt 0:00:13]} Nc4 {[%emt 0:02:25]} 28. Qh3 {[%emt 0:01:20]} Rdg7 {[%emt 0:01:40]} 29. g3 {[%emt 0:00:19]} a5 {[%emt 0:09:09]} 30. Rb5 {[%emt 0:01:37]} Na3 {[%emt 0:00:22]} 31. Rxf5 {[%emt 0:01:19]} Nxc2 {[%emt 0:00:16]} 32. Rb1 {[%emt 0:02:03]} Qxc3 {[%emt 0:01:42]} 33. Be5 {[%emt 0:01:18]} Re7 {[%emt 0:01:50]} 34. Qh4 {[%emt 0:00:50]} e3 {[%emt 0:02:27]} 35. Qe4+ {[%emt 0:01:12]} Ka7 {[%emt 0:00:39]} 36. fxe3 {[%emt 0:01:12]} Qxe3+ {[%emt 0:00:30]} 37. Qxe3 {[%emt 0:00:04]} Nxe3 {[%emt 0:00:04]} 38. Rf3 {[%emt 0:01:11]} Nc4 {[%emt 0:02:03]} 39. Rc3 {[%emt 0:00:33]} Nxe5 {[%emt 0:00:29]} 40. dxe5 {[%emt 0:00:00]} Kb7 {[%emt 0:00:00]} 41. Re3 {[%emt 0:03:42]} Rg4 {[%emt 0:02:25]} 42. Ra1 {[%emt 0:02:29]} c5 {[%emt 0:00:05]} 43. Kf2 {[%emt 0:03:33]} Kc6 {[%emt 0:00:05]} 44. Kf3 {[%emt 0:01:22]} Rd4 {[%emt 0:00:15]} 45. Re4 {[%emt 0:02:37]} Kd5 {[%emt 0:03:30]} 46. Rxd4+ {[%emt 0:01:26]} Kxd4 {[%emt 0:00:33]} 47. Rb1 {[%emt 0:00:55]} Rxe5 {[%emt 0:00:20]} 48. Rxb6 {[%emt 0:00:06]} c4 {[%emt 0:00:30]} 49. Rd6+ {[%emt 0:05:45]} Kc3 {[%emt 0:00:46]} 50. Rh6 {[%emt 0:03:52]} Kb2 {[%emt 0:00:29]} 51. Rxh7 {[%emt 0:01:22]} c3 {[%emt 0:00:43]} 52. Rb7+ {[%emt 0:01:20]} Ka3 {[%emt 0:01:44]} 53. Rc7 {[%emt 0:00:16]} Kb3 {[%emt 0:04:18]} 54. g4 {[%emt 0:00:56]} c2 {[%emt 0:00:23]} 55. h4 {[%emt 0:01:10]} Re1 {[%emt 0:00:26]} 56. g5 {[%emt 0:03:02]} c1=Q {[%emt 0:00:06]} 57. Rxc1 {[%emt 0:00:03]} Rxc1 {[%emt 0:00:03]} 58. h5 {[%emt 0:00:16]} Rh1 {[%emt 0:00:18]} 59. Kg4 {[%emt 0:00:21]} Kxa4 {[%emt 0:00:05]} 60. g6 {[%emt 0:01:06]} Kb5 {[%emt 0:00:15]} 61. Kf4 {[%emt 0:00:49]} a4 {[%emt 0:06:48]} 62. g7 {[%emt 0:00:23]} Rg1 {[%emt 0:00:02]} 63. h6 {[%emt 0:00:08]} a3 {[%emt 0:00:07]} 64. h7 {[%emt 0:00:13]} a2 {[%emt 0:00:19]} 1/2-1/2

[Event "WYCC 2018 G14"]
[Site "Halkidiki"]
[Date "2018.10.29"]
[Round "10"]
[White "Yedigaryan, Asya"]
[Black "Kong, Sydney"]
[Result "1-0"]
[ECO "A11"]
[WhiteElo "1726"]
[BlackElo "1659"]
[Annotator "NA"]
[PlyCount "73"]
[EventDate "2018.10.20"]
[EventType "swiss"]
[EventCountry "GRE"]
[SourceTitle "playchess.com"]
[Source "ChessBase"]
[SourceQuality "1"]
[TimeControl "40/5400+30:1800+30"]

1. c4 {[%emt 0:00:00]} c6 {[%emt 0:00:00]} 2. Nc3 {[%emt 0:00:00]} Nf6 {[%emt 0:00:00]} 3. g3 {[%emt 0:00:00]} d5 {[%emt 0:01:46]} 4. cxd5 {[%emt 0:00:06]} Nxd5 {[%emt 0:00:12]} 5. Bg2 {[%emt 0:00:36]} e6 {[%emt 0:02:18]} 6. e3 {[%emt 0:02:11]} Nd7 {[%emt 0:07:20]} 7. Nge2 {[%emt 0:04:40]} Be7 {[%emt 0:07:22]} 8. O-O {[%emt 0:00:51]} O-O {[%emt 0:01:32]} 9. d4 {[%emt 0:00:23]} N7f6 {[%emt 0:01:56]} 10. e4 {[%emt 0:03:05]} Nc7 {[%emt 0:06:12]} 11. Qb3 {[%emt 0:08:48]} b6 {[%emt 0:05:31]} 12. Rd1 {[%emt 0:02:43]} Bb7 {[%emt 0:02:13]} 13. Nf4 {[%emt 0:01:51]} Qc8 {[%emt 0:04:02]} 14. h3 {[%emt 0:08:28]} Rd8 {[%emt 0:03:39]} 15. Be3 {[%emt 0:00:15]} h6 {[%emt 0:04:38]} 16. Rd2 {[%emt 0:03:40]} Rb8 {[%emt 0:05:59]} 17. Rad1 h5 18. e5 {[%emt 0:13:09]} Nfd5 {[%emt 0:09:01]} 19. Nxh5 {[%emt 0:00:28]} Nxe3 {[%emt 0:02:45]} 20. fxe3 {[%emt 0:00:10]} c5 {[%emt 0:01:30]} 21. Nf4 {[%emt 0:07:48]} g5 {[%emt 0:05:20]} 22. Nh5 {[%emt 0:02:57]} Nd5 {[%emt 0:03:15]} 23. Nxd5 {[%emt 0:05:03]} Bxd5 {[%emt 0:00:24]} 24. Bxd5 {[%emt 0:03:12]} Rxd5 {[%emt 0:03:06]} 25. Kh2 {[%emt 0:07:05]} cxd4 {[%emt 0:04:55]} 26. exd4 {[%emt 0:01:57]} Qd7 {[%emt 0:00:39]} 27. Qe3 {[%emt 0:01:11]} Qe8 {[%emt 0:07:25]} 28. Rf1 {[%emt 0:00:34]} Qb5 {[%emt 0:01:36]} 29. Rdf2 {[%emt 0:02:43]} Rf8 {[%emt 0:00:10]} 30. Nf6+ {[%emt 0:01:17]} Kh8 {[%emt 0:03:19]} 31. Qxg5 {[%emt 0:00:34]} Bxf6 {[%emt 0:00:18]} 32. Rxf6 {[%emt 0:00:34]} Qe2+ {[%emt 0:02:13]} 33. R1f2 {[%emt 0:00:05]} Qe4 {[%emt 0:00:52]} 34. Rh6+ {[%emt 0:00:09]} Qh7 {[%emt 0:00:06]} 35. Rxh7+ {[%emt 0:00:04]} Kxh7 {[%emt 0:00:03]} 36. Rf6 {[%emt 0:00:09]} Rxd4 {[%emt 0:00:12]} 37. Rh6# {[%emt 0:00:07]} 1-0

[Event "WYCC 2018 G14"]
[Site "Halkidiki"]
[Date "2018.10.29"]
[Round "10"]
[White "Villanyi, Alexia"]
[Black "Anghel, Maria"]
[Result "1-0"]
[ECO "B43"]
[WhiteElo "1709"]
[BlackElo "1801"]
[Annotator "NA"]
[PlyCount "61"]
[EventDate "2018.10.20"]
[EventType "swiss"]
[EventCountry "GRE"]
[SourceTitle "playchess.com"]
[Source "ChessBase"]
[SourceQuality "1"]
[TimeControl "40/5400+30:1800+30"]

1. e4 {[%emt 0:00:00]} c5 {[%emt 0:00:00]} 2. Nf3 {[%emt 0:00:00]} e6 {[%emt 0:00:00]} 3. Nc3 {[%emt 0:00:00]} a6 {[%emt 0:00:00]} 4. d4 {[%emt 0:00:08]} cxd4 {[%emt 0:00:04]} 5. Nxd4 {[%emt 0:00:13]} Qc7 {[%emt 0:00:10]} 6. Bd3 {[%emt 0:00:34]} Nf6 {[%emt 0:00:14]} 7. Qe2 {[%emt 0:01:16]} d6 {[%emt 0:00:22]} 8. f4 {[%emt 0:03:58]} Nbd7 {[%emt 0:01:45]} 9. Be3 {[%emt 0:08:18]} b5 {[%emt 0:02:55]} 10. a3 {[%emt 0:02:55]} Bb7 {[%emt 0:01:42]} 11. O-O {[%emt 0:01:31]} Be7 {[%emt 0:00:43]} 12. Rae1 {[%emt 0:06:17]} O-O {[%emt 0:01:15]} 13. Kh1 {[%emt 0:07:14]} Nc5 {[%emt 0:03:35]} 14. Bd2 {[%emt 0:01:36]} Rfd8 {[%emt 0:08:34]} 15. Qf2 {[%emt 0:10:10]} d5 {[%emt 0:18:03]} 16. e5 {[%emt 0:11:08]} Nfe4 {[%emt 0:02:37]} 17. Qe3 {[%emt 0:09:00]} Rac8 {[%emt 0:11:10]} 18. Rf3 {[%emt 0:07:52]} g6 {[%emt 0:08:49]} 19. Ref1 {[%emt 0:06:32]} Qd7 {[%emt 0:13:57]} 20. Qe2 {[%emt 0:01:43]} Nxd2 {[%emt 0:01:13]} 21. Qxd2 {[%emt 0:00:19]} Ne4 {[%emt 0:00:35]} 22. Qe1 {[%emt 0:04:41]} Nxc3 {[%emt 0:01:04]} 23. bxc3 {[%emt 0:00:02]} Bxa3 {[%emt 0:00:47]} 24. Rg3 {[%emt 0:02:14]} Kh8 {[%emt 0:07:06]} 25. Rh3 {[%emt 0:03:13]} Be7 {[%emt 0:04:45]} 26. f5 {[%emt 0:03:19]} exf5 {[%emt 0:01:52]} 27. Nxf5 {[%emt 0:00:28]} d4 {[%emt 0:07:59]} 28. Qg3 {[%emt 0:05:34]} Rxc3 {[%emt 0:01:35]} 29. Nh6 {[%emt 0:01:08]} Rf8 {[%emt 0:01:00]} 30. Nxf7+ {[%emt 0:01:07]} Kg7 {[%emt 0:00:30]} 31. Rxh7+ {[%emt 0:00:59]} 1-0

[Event "WYCC 2018 G14"]
[Site "Halkidiki"]
[Date "2018.10.29"]
[Round "10"]
[White "Tien, Sophie"]
[Black "Bardorz, Jana"]
[Result "1-0"]
[ECO "C50"]
[WhiteElo "1648"]
[BlackElo "1810"]
[Annotator "NA"]
[PlyCount "61"]
[EventDate "2018.10.20"]
[EventType "swiss"]
[EventCountry "GRE"]
[SourceTitle "playchess.com"]
[Source "ChessBase"]
[SourceQuality "1"]
[TimeControl "40/5400+30:1800+30"]

1. e4 {[%emt 0:00:00]} e5 {[%emt 0:00:00]} 2. Nf3 {[%emt 0:00:00]} Nc6 {[%emt 0:00:00]} 3. Bc4 {[%emt 0:00:00]} Nf6 {[%emt 0:00:00]} 4. d3 {[%emt 0:00:45]} Bc5 {[%emt 0:00:02]} 5. c3 {[%emt 0:00:13]} d6 {[%emt 0:00:48]} 6. h3 {[%emt 0:01:22]} a6 {[%emt 0:02:00]} 7. Bb3 Ba7 {[%emt 0:01:46]} 8. Nbd2 {[%emt 0:01:36]} O-O {[%emt 0:05:30]} 9. Nf1 Ne7 {[%emt 0:00:17]} 10. Ng3 {[%emt 0:02:53]} Ng6 {[%emt 0:06:07]} 11. O-O h6 12. d4 {[%emt 0:07:27]} Re8 {[%emt 0:04:31]} 13. Re1 {[%emt 0:02:08]} Be6 {[%emt 0:03:51]} 14. Bc2 c6 15. Be3 {[%emt 0:08:34]} Qc7 {[%emt 0:09:55]} 16. Qd2 {[%emt 0:05:20]} Rad8 {[%emt 0:06:30]} 17. Nf5 {[%emt 0:08:25]} Bxf5 {[%emt 0:07:46]} 18. exf5 {[%emt 0:01:30]} e4 {[%emt 0:03:10]} 19. fxg6 {[%emt 0:04:32]} exf3 {[%emt 0:01:01]} 20. Bf4 {[%emt 0:10:07]} fxg6 {[%emt 0:09:04]} 21. Bxg6 {[%emt 0:01:32]} Rf8 {[%emt 0:01:23]} 22. Re3 {[%emt 0:06:55]} Nd5 {[%emt 0:04:33]} 23. Rxf3 {[%emt 0:01:23]} Nxf4 {[%emt 0:02:47]} 24. Rxf4 {[%emt 0:01:41]} Rxf4 {[%emt 0:01:21]} 25. Qxf4 {[%emt 0:00:40]} Rf8 {[%emt 0:00:31]} 26. Bh7+ {[%emt 0:01:20]} Kxh7 {[%emt 0:01:27]} 27. Qxf8 {[%emt 0:00:10]} d5 {[%emt 0:02:06]} 28. Re1 {[%emt 0:00:46]} Bb8 {[%emt 0:01:52]} 29. g3 {[%emt 0:00:45]} Qd6 {[%emt 0:01:49]} 30. Qf5+ {[%emt 0:01:43]} g6 {[%emt 0:00:36]} 31. Qf7+ {[%emt 0:00:14]} 1-0

[Event "WYCC 2018 G14"]
[Site "Halkidiki"]
[Date "2018.10.29"]
[Round "10"]
[White "Yellamraju, Ambica"]
[Black "Matus, Nastassja"]
[Result "1/2-1/2"]
[ECO "D26"]
[WhiteElo "1647"]
[BlackElo "1983"]
[Annotator "NA"]
[PlyCount "74"]
[EventDate "2018.10.20"]
[EventType "swiss"]
[EventCountry "GRE"]
[SourceTitle "playchess.com"]
[Source "ChessBase"]
[SourceQuality "1"]
[TimeControl "40/5400+30:1800+30"]

1. d4 {[%emt 0:00:00]} d5 {[%emt 0:00:00]} 2. c4 {[%emt 0:00:00]} dxc4 {[%emt 0:00:00]} 3. Nf3 {[%emt 0:00:00]} Nf6 {[%emt 0:00:00]} 4. e3 {[%emt 0:00:00]} e6 $14 {[%emt 0:00:00] LiveBook: 6019 Games} 5. Bxc4 {[%emt 0:00:00]} a6 {[%emt 0:00:00]} 6. O-O {[%emt 0:00:26]} c5 {[%emt 0:00:08]} 7. b3 {[%emt 0:00:27]} b5 {[%emt 0:01:09]} 8. Be2 {[%emt 0:00:26]} Bb7 {[%emt 0:01:12]} 9. a4 {[%emt 0:01:03]} b4 {[%emt 0:02:23]} 10. Bb2 {[%emt 0:01:13]} Nc6 {[%emt 0:02:31]} 11. Nbd2 {[%emt 0:02:00]} cxd4 {[%emt 0:15:30]} 12. Nxd4 {[%emt 0:03:27]} Nxd4 {[%emt 0:03:30]} 13. Bxd4 {[%emt 0:04:33]} Be7 {[%emt 0:02:21]} 14. Bf3 {[%emt 0:03:33]} Bxf3 {[%emt 0:04:43]} 15. Qxf3 {[%emt 0:03:08]} O-O {[%emt 0:03:42]} 16. Nc4 {[%emt 0:02:49]} Qd5 {[%emt 0:06:06]} 17. Bxf6 {[%emt 0:16:47]} Qxf3 {[%emt 0:06:30]} 18. gxf3 {[%emt 0:00:21]} Bxf6 {[%emt 0:02:57]} 19. Rac1 {[%emt 0:01:15]} Rac8 {[%emt 0:17:21]} 20. Rfd1 {[%emt 0:01:51]} Rfd8 {[%emt 0:03:18]} 21. Kf1 {[%emt 0:02:30]} Kf8 {[%emt 0:06:55]} 22. Ke2 {[%emt 0:03:03]} Rxd1 {[%emt 0:03:52]} 23. Rxd1 {[%emt 0:01:16]} Ke7 {[%emt 0:00:46]} 24. e4 {[%emt 0:05:49]} Bc3 {[%emt 0:06:27]} 25. Ke3 {[%emt 0:08:20]} e5 {[%emt 0:03:51]} 26. Rd5 {[%emt 0:03:19]} f6 {[%emt 0:02:09]} 27. f4 {[%emt 0:04:17]} exf4+ {[%emt 0:01:52]} 28. Kxf4 {[%emt 0:02:39]} Rc6 {[%emt 0:01:10]} 29. Ke3 {[%emt 0:01:44]} g5 {[%emt 0:01:43]} 30. f4 {[%emt 0:04:19]} h6 {[%emt 0:01:03]} 31. Kf3 {[%emt 0:02:07]} Ba1 {[%emt 0:01:27]} 32. h3 {[%emt 0:06:27]} Bc3 {[%emt 0:00:50]} 33. Kg4 {[%emt 0:01:00]} Re6 {[%emt 0:00:21]} 34. Kf3 {[%emt 0:01:22]} Rc6 {[%emt 0:00:10]} 35. Kg4 {[%emt 0:05:20]} Re6 {[%emt 0:00:12]} 36. Kf5 Rc6 37. Kg4 gxf4 1/2-1/2

[Event "WYCC 2018 G14"]
[Site "Halkidiki"]
[Date "2018.10.29"]
[Round "10"]
[White "Arauco Celestino, Arianna Sofia"]
[Black "Ziegenfuss, Antonia"]
[Result "1-0"]
[ECO "A30"]
[WhiteElo "1610"]
[BlackElo "1969"]
[Annotator "NA"]
[PlyCount "91"]
[EventDate "2018.10.20"]
[EventType "swiss"]
[EventCountry "GRE"]
[SourceTitle "playchess.com"]
[Source "ChessBase"]
[SourceQuality "1"]
[TimeControl "40/5400+30:1800+30"]

1. c4 {[%emt 0:00:00]} c5 {[%emt 0:00:00]} 2. Nf3 {[%emt 0:00:21]} Nf6 {[%emt 0:00:00]} 3. b3 {[%emt 0:00:24]} d5 {[%emt 0:01:00]} 4. cxd5 {[%emt 0:01:19]} Nxd5 {[%emt 0:00:10]} 5. Ba3 {[%emt 0:00:10]} Qa5 {[%emt 0:09:13]} 6. e4 {[%emt 0:05:16]} Nb4 {[%emt 0:04:56]} 7. Bxb4 {[%emt 0:02:21]} Qxb4 {[%emt 0:00:28]} 8. Nc3 {[%emt 0:00:43]} e6 {[%emt 0:13:57]} 9. Ne5 {[%emt 0:04:57]} Qd4 {[%emt 0:07:06]} 10. Nc4 {[%emt 0:02:54]} Nc6 {[%emt 0:04:00]} 11. Rc1 {[%emt 0:06:44]} Be7 $17 {[%emt 0:03:55]} 12. Qf3 {[%emt 0:01:22]} a6 {[%emt 0:03:36]} 13. Nb6 {[%emt 0:12:59]} Rb8 {[%emt 0:01:16]} 14. Nca4 {[%emt 0:08:23]} Bg5 {[%emt 0:09:52]} 15. Qd3 {[%emt 0:03:40]} O-O {[%emt 0:07:02]} 16. Qxd4 {[%emt 0:00:56]} cxd4 {[%emt 0:02:01]} 17. Bxa6 {[%emt 0:12:16]} Nb4 {[%emt 0:06:24]} 18. Bb5 {[%emt 0:00:33]} Nxa2 {[%emt 0:02:40]} 19. Rc2 {[%emt 0:03:38]} Nb4 {[%emt 0:00:33]} 20. Rc4 {[%emt 0:00:04]} Nd3+ {[%emt 0:01:32]} 21. Ke2 {[%emt 0:00:05]} Nf4+ {[%emt 0:03:25]} 22. Kf3 {[%emt 0:00:11]} Rd8 {[%emt 0:02:58]} 23. Rc5 {[%emt 0:15:24]} e5 {[%emt 0:05:20]} 24. Rxe5 {[%emt 0:04:24]} f6 {[%emt 0:00:51]} 25. Bc4+ {[%emt 0:03:44]} Kf8 {[%emt 0:01:13]} 26. Rc5 {[%emt 0:00:07]} Be6 {[%emt 0:01:31]} 27. g3 {[%emt 0:02:19]} Bxc4 {[%emt 0:03:19]} 28. gxf4 {[%emt 0:00:09]} Bxb3 {[%emt 0:01:00]} 29. fxg5 {[%emt 0:00:20]} Bxa4 {[%emt 0:00:32]} 30. Nxa4 {[%emt 0:00:06]} b5 {[%emt 0:00:09]} 31. Nb2 {[%emt 0:00:51]} fxg5 {[%emt 0:00:06]} 32. Nd3 {[%emt 0:01:17]} b4 {[%emt 0:01:08]} 33. Rb1 {[%emt 0:00:07]} b3 {[%emt 0:00:06]} 34. Nc1 {[%emt 0:00:18]} b2 {[%emt 0:00:52]} 35. Nd3 {[%emt 0:00:37]} Rb3 {[%emt 0:00:07]} 36. Ke2 {[%emt 0:00:04]} Re8 {[%emt 0:00:51]} 37. f3 {[%emt 0:00:19]} g4 {[%emt 0:00:15]} 38. Rf5+ {[%emt 0:00:43]} Kg8 {[%emt 0:00:25]} 39. Rxb2 {[%emt 0:00:29]} gxf3+ {[%emt 0:00:12]} 40. Rxf3 {[%emt 0:00:00]} Rxe4+ {[%emt 0:00:00]} 41. Kf2 {[%emt 0:00:47]} Rxb2 {[%emt 0:00:28]} 42. Nxb2 {[%emt 0:00:05]} g6 {[%emt 0:01:06]} 43. Nd3 {[%emt 0:01:12]} Re6 {[%emt 0:02:11]} 44. Nc5 {[%emt 0:00:41]} Rc6 {[%emt 0:00:24]} 45. Nb3 {[%emt 0:00:25]} Rc2 {[%emt 0:00:58]} 46. Ke2 {[%emt 0:00:35]} 1-0